Cogmind - Beta 13 @@@ ROGUE MODE // 2024.04.22 @ 00:25:47 Player: Aaron Result: Destroyed by B-75 Beast with Magnetic Acceleration Cannon Performance ------------- Evolutions (4) 2000 Regions Visited (8) 1600 Robots Destroyed (75) 375 Value Destroyed (1642) 1642 Prototype IDs (11) 220 Alien Tech Used (0) 0 Bonus (584) 584 TOTAL SCORE: 6421 Bonus ------- High Alert Combat Kills 64 Follower Combat Kills 20 Entered DSFs 500 Cogmind --------- Core Integrity 0/850 Matter 300/300 Energy 79/100 System Corruption 3% Temperature Hot (204) Movement Hovering (56) Location -6/Extension Parts ------- > --- POWER (2) -------- (None) > --- PROPULSION (4) --- Gravmag Array Gravmag Array > --- UTILITY (7) ------ Triangulator Advanced Sensor Array Advanced Melee Analysis Suite Hacking Suite > --- WEAPON (2) ------- Power Sword > --- INVENTORY (5) ---- VTOL Module Advanced Weight Redist. System Improved Trap Extractor (0/6) Improved Proton Missile Launcher Peak State ------------ > --- POWER ------------ Micro Nuclear Core Light Angular Momentum Engine > --- PROPULSION ------- Gravmag Array Gravmag Array > --- UTILITY ---------- Improved Trap Scanner Triangulator Advanced Sensor Array Improved Melee Analysis Suite Advanced Melee Analysis Suite Hacking Suite Advanced System Shield > --- WEAPON ----------- Remote Datajack Power Sword > --- INVENTORY -------- Gravmag System VTOL Module Advanced Weight Redist. System Improved Trap Extractor Improved Proton Missile Launcher [Rating: 72] Favorites ----------- Power Improved Deuterium Engine Engine Improved Deuterium Engine Power Core Micro Nuclear Core Propulsion Improved Carbon-fiber Leg Leg Improved Carbon-fiber Leg Wheel Wheel Hover Unit Gravmag Array Flight Unit Flight Unit Utility Improved Melee Analysis Suite Device Triangulator Processor Improved Melee Analysis Suite Hackware Hacking Suite Protection Propulsion Shielding Weapon Light Assault Rifle Energy Gun Medium Laser Ballistic Gun Light Assault Rifle Launcher Grenade Launcher Special Weapon Remote Datajack Impact Weapon Heavy Flail Slashing Weapon Chainsword Special Melee Weapon Datajack Build | -11 -10 -9 -9 -8 -7 -7 -6 -6 ------- Run | Yrd Mat Mat Min Mat Fac DSF Fac Ext Slots Evolved 8 | . . 2 . 2 2 . 2 . Power 1 | . . . . 1 . . . . Propulsion 2 | . . . . 1 . . 1 . Utility 5 | . . 2 . . 2 . 1 . Weapon . | . . . . . . . . . Parts Attached 101 | 10 11 13 13 9 3 6 36 . Power 16 | 3 1 2 1 2 . . 7 . Engine 12 | 3 1 2 1 2 . . 3 . Core 4 | . . . . . . . 4 . Reactor . | . . . . . . . . . Propulsion 25 | 3 3 5 2 3 . 3 6 . Treads . | . . . . . . . . . Leg 2 | . . . 2 . . . . . Wheel 4 | 3 1 . . . . . . . Hover 7 | . . . . 1 . 1 5 . Flight 12 | . 2 5 . 2 . 2 1 . Utility 35 | 2 5 1 5 2 1 3 16 . Device 22 | 2 3 1 3 2 1 . 10 . Storage . | . . . . . . . . . Processor 7 | . 2 . . . . 3 2 . Hackware 2 | . . . . . . . 2 . Protection 4 | . . . 2 . . . 2 . Artifact . | . . . . . . . . . Weapon 25 | 2 2 5 5 2 2 . 7 . Energy Gun 2 | 1 . . 1 . . . . . Energy Cannon . | . . . . . . . . . Ballistic Gun 8 | 1 1 4 . 2 . . . . Ballistic Cannon . | . . . . . . . . . Launcher 5 | . 1 1 3 . . . . . Special Weapon 2 | . . . . . . . 2 . Impact Weapon 4 | . . . . . 1 . 3 . Slashing Weapon 3 | . . . 1 . . . 2 . Piercing Weapon . | . . . . . . . . . Special Melee Weapon 1 | . . . . . 1 . . . Unidentified Prototypes 2 | . . . . . . . 2 . Corrupted Parts 1 | . . . . . . . 1 . System Corruption 1 | . . . . . . . 1 . Parts Lost 47 | . 4 14 1 10 . . 12 6 Power 9 | . 1 3 . 2 . . 1 2 Propulsion 13 | . 1 6 . 2 . . 4 . Utility 15 | . 1 1 1 4 . . 5 3 Weapon 10 | . 1 4 . 2 . . 2 1 Highest Loss Streak 11 | . 3 11 1 6 . . 4 6 To Critical Strikes . | . . . . . . . . . Average Slot Usage (%) 80 | . 95 63 97 64 42 60 73 78 Engine 6 | . 13 6 10 7 . . 2 5 Core 2 | . . . . . . . 5 5 Leg 7 | . . . 21 13 . . . . Wheel 1 | . 17 . . . . . . . Hover 3 | . . . . . . . 9 13 Flight 4 | . 10 20 . . 15 12 2 . Device 13 | . 22 7 10 15 11 15 14 18 Processor 11 | . 2 11 11 3 . 16 17 11 Hackware 2 | . . . . . . . 6 12 Protection 8 | . . . 21 12 . . 2 . Ballistic Gun 4 | . 20 17 . 5 12 . . . Launcher 4 | . 7 . 10 2 . . . . Impact Weapon 1 | . . . . . 1 7 3 . Slashing Weapon 4 | . . . 10 5 . . 2 6 Naked Turns . | . . . . . . . . . Heaviest Build 28 | 9 9 6 28 26 9 7 26 26 Greatest Support 49 | 26 20 8 36 36 9 20 49 40 Greatest Overweight (x) 4 | . . . 1 4 . 2 4 . Average Overweight (x) . | . . . . . . . . . Largest Inventory Capacity 5 | 5 5 5 5 5 5 5 5 5 Average Capacity 5 | 5 5 5 5 5 5 5 5 5 Most Carried 5 | 4 5 5 5 5 4 5 5 5 Average Carried 3 | 1 3 2 3 3 3 2 3 4 Final Capacity 5 | 5 5 5 5 5 5 5 5 5 Final Carried 5 | 4 5 1 5 3 1 3 5 4 Class Distribution -------------------- 75% | Mutant 13% | Hacker-Mutant 10% | Scavenger-Mutant Dominant Class ---------------- Mutant | -10/Materials Mutant | -9/Materials Mutant | -9/Mines Mutant | -8/Materials Mutant | -7/Factory Mutant | -7/DSF Mutant | -6/Factory Hacker-Mutant | -6/Extension Resources | -11 -10 -9 -9 -8 -7 -7 -6 -6 ----------- Run | Yrd Mat Mat Min Mat Fac DSF Fac Ext Matter Collected 1926 | 310 243 167 158 89 . 116 843 . Remotely . | . . . . . . . . . Salvage Created 2580 | 161 381 212 242 244 . 110 1230 . Parts 145 | 19 32 22 12 16 . 5 39 . Haulers Intercepted 2 | . . . . . . . 2 . Recyclers Shooed 1 | . . . . . . . 1 . Parts Field Recycled . | . . . . . . . . . Retrieved Matter . | . . . . . . . . . Parts Self-Destructed . | . . . . . . . . . Prevented . | . . . . . . . . . Kills | -11 -10 -9 -9 -8 -7 -7 -6 -6 ------- Run | Yrd Mat Mat Min Mat Fac DSF Fac Ext Combat Hostiles Destroyed 42 | . 12 10 2 7 . 2 9 . Melee 8 | . . . . 1 . . 7 . Guns 20 | . 9 9 . 2 . . . . AOE 10 | . 3 1 2 4 . . . . Classes Destroyed 14 | 2 4 . 1 1 . 2 4 . Worker 7 | . . . 2 1 . . 4 . Builder 2 | . . . . . . . 2 . Tunneler 7 | 5 . . 2 . . . . . Hauler 2 | . . . . . . . 2 . Recycler 8 | 1 1 . 2 . . . 4 . Operator 1 | . 1 . . . . . . . Watcher 6 | . 2 . . 2 . . 2 . Swarmer 19 | . 6 8 . 3 . . 2 . Grunt 13 | . 6 2 2 3 . . . . Sentry 3 | . . . . . . . 3 . Specialist 1 | . . . . . . 1 . . Hunter 1 | . . . . 1 . . . . Programmer 4 | . . . . . . . 4 . Heavy 1 | . . . . . . 1 . . Best Kill Streak 8 | 6 8 5 3 4 . 1 5 . Combat Bots Only 7 | . 7 5 2 3 . 1 2 . Max Kills in Single Turn 2 | 1 2 1 2 2 . 1 1 . Gunslinging . | . . . . . . . . . Exploded 2 | . 2 1 1 2 . . . . Melee 1 | . . . . 1 . . 1 . Uniques/NPCs Destroyed . | . . . . . . . . . Combat | -11 -10 -9 -9 -8 -7 -7 -6 -6 -------- Run | Yrd Mat Mat Min Mat Fac DSF Fac Ext Hostile Shots Fired 594 | . 71 122 7 123 . 21 200 50 Missed 239 | . 20 50 4 50 . 12 82 21 Damage Taken 4619 | . 484 740 115 1017 . 126 1615 522 Core 1501 | . 105 204 37 244 . 55 646 210 Absorbed by Shields 17 | . . . . . . 17 . . Redirected to Shielding 90 | . . . 3 36 . . 51 . Core Remaining (%) 68 | 100 58 . 39 55 . 92 . . Volleys Fired 141 | 10 60 44 3 18 . . 6 . Largest 2 | 2 2 2 1 2 . . 1 . Hottest 70 | 70 50 50 33 46 . . 5 . Shots Fired 235 | 20 94 82 3 30 . . 6 . Gun 211 | 20 88 79 . 24 . . . . Cannon . | . . . . . . . . . Launcher 18 | . 6 3 3 6 . . . . Special 6 | . . . . . . . 6 . Kinetic 201 | 10 88 79 . 24 . . . . Thermal 10 | 10 . . . . . . . . Explosive 18 | . 6 3 3 6 . . . . Electromagnetic . | . . . . . . . . . Robot Hit Streak 7 | 7 5 7 2 5 . . 4 . Robot Miss Streak 9 | 2 9 7 1 3 . . 1 . Penetration Max . | . . . . . . . . . Secondary Targets 2 | . 1 . . 1 . . . . Max Gunslinging Chain 1 | . 1 . . 1 . . . . Shots Hit Robots 172 | 14 42 36 11 20 . 2 45 2 Core Hits 101 | 9 30 20 7 22 . . 13 . Critical Kills 3 | . 1 . . . . . 2 . Critical Parts Destroyed 9 | . 1 . . 1 . 1 6 . Critical Strikes 17 | 2 2 . . 2 . 1 10 . Burn 2 | 2 . . . . . . . . Destroy 3 | . 2 . . 1 . . . . Smash 9 | . . . . . . 1 8 . Sever 3 | . . . . 1 . . 2 . Melee Attacks 89 | . . . 9 4 . 2 70 4 Impact 42 | . . . . . . 2 40 . Slashing 47 | . . . 9 4 . . 30 4 Piercing . | . . . . . . . . . Sneak Attacks 21 | . . . 7 . . 1 12 1 Combat Hostiles 1 | . . . . . . 1 . . Follow-up Attacks . | . . . . . . . . . Damage Inflicted 5897 | 155 746 433 764 821 . 88 2743 147 Guns 1020 | 155 370 291 . 204 . . . . Cannons . | . . . . . . . . . Explosions 1217 | . 376 138 207 496 . . . . Melee 3638 | . . . 557 103 . 88 2743 147 Ramming 22 | . . 4 . 18 . . . . Kinetic 907 | 42 370 291 . 204 . . . . Thermal 113 | 113 . . . . . . . . Explosive 1217 | . 376 138 207 496 . . . . Electromagnetic . | . . . . . . . . . Impact 1823 | . . . . . . 88 1735 . Slashing 1815 | . . . 557 103 . . 1008 147 Piercing . | . . . . . . . . . Highest Corruption 3 | . . . . . . . 3 3 Average Corruption 1 | . . . . . . . 1 3 Corruption Purged . | . . . . . . . . . Corruption Blocked . | . . . . . . . . . Effects 3 | . . . . . . . 3 . Message Errors 1 | . . . . . . . 1 . Matter Fused 1 | . . . . . . . 1 . Data Loss (minor) 1 | . . . . . . . 1 . Overload Shots . | . . . . . . . . . Overflow Damage 1245 | . 33 . 186 . . 48 968 10 Projectiles . | . . . . . . . . . Explosions 42 | . 33 . 9 . . . . . Melee 1203 | . . . 177 . . 48 968 10 Knockbacks 7 | . . . . . . . 7 . Impact 7 | . . . . . . . 7 . Kinetic . | . . . . . . . . . Secondary . | . . . . . . . . . Self-Inflicted Damage 54 | . . 2 35 17 . . . . Shots 2 | . . . 1 1 . . . . Rammed 1 | . . 1 . . . . . . Targets Rammed 11 | . . 1 . 10 . . . . Kicked 10 | . . . . 10 . . . . Crushed . | . . . . . . . . . Highest Temperature 298 | 100 26 17 12 27 . . . 298 Average Temperature 28 | 43 7 4 7 22 . . . 212 Received Heat Transfer 1429 | . 129 144 21 306 . 51 378 400 Siege Activations . | . . . . . . . . . Robots Corrupted . | . . . . . . . . . Combat Hostiles . | . . . . . . . . . Parts Fried 18 | . . . . . . 5 13 . Impact Corruptions 28 | . . . . . . 2 26 . Robots Melted . | . . . . . . . . . Combat Hostiles . | . . . . . . . . . Parts Melted 3 | 2 . . . . . . 1 . Heat Transferred 481 | 481 . . . . . . . . Parts Sabotaged . | . . . . . . . . . Parts Stolen . | . . . . . . . . . Parts Stripped . | . . . . . . . . . Power Chain Reactions . | . . . . . . . . . Alert | -11 -10 -9 -9 -8 -7 -7 -6 -6 ------- Run | Yrd Mat Mat Min Mat Fac DSF Fac Ext Peak Influence 613 | 30 431 387 132 219 130 149 613 153 Initial 182 | . 19 182 117 . 85 94 77 153 Average 205 | 14 215 277 65 138 99 132 341 147 Maximum Alert Level 2 | . 2 1 . 1 . . 2 . Low Security (%) 55 | 100 44 11 100 84 100 100 17 100 Level 1 30 | . 43 88 . 15 . . 47 . Level 2 13 | . 12 . . . . . 35 . Level 3 . | . . . . . . . . . Level 4 . | . . . . . . . . . Level 5 . | . . . . . . . . . High Security . | . . . . . . . . . Max Security . | . . . . . . . . . Squads Dispatched 30 | . 2 4 . 3 . 2 19 . Investigation 14 | . 1 2 . . . . 11 . Extermination 4 | . . . . . . . 4 . Reinforcement 10 | . 1 2 . 2 . 2 3 . Assault 1 | . . . . 1 . . . . Garrison 1 | . . . . . . . 1 . Intercept . | . . . . . . . . . Searches Triggered 3 | . . . . . . . 3 . Construction Impeded 2 | . . . . 1 . . 1 . Haulers Reinforced 2 | . . . . . . . 2 . Active Scanning Responses . | . . . . . . . . . Cargo Convoy Interrupts . | . . . . . . . . . Stealth | -11 -10 -9 -9 -8 -7 -7 -6 -6 --------- Run | Yrd Mat Mat Min Mat Fac DSF Fac Ext Distress Signals 5 | . 1 2 . 1 . . 1 . Communications Jammed . | . . . . . . . . . Distress Signals . | . . . . . . . . . Times Spotted 134 | . 21 28 2 20 1 7 50 5 Peak Tracking Total 10 | . 6 9 2 5 1 4 10 6 Tactical Retreats 19 | . 2 3 . 1 . 1 12 . Traps | -11 -10 -9 -9 -8 -7 -7 -6 -6 ------- Run | Yrd Mat Mat Min Mat Fac DSF Fac Ext Traps Triggered 6 | . . 1 1 . . 2 2 . Indirectly . | . . . . . . . . . Trap Hack Attempts 3 | . . . . . . . 3 . Triggered . | . . . . . . . . . Disarmed . | . . . . . . . . . Reprogrammed 3 | . . . . . . . 3 . Reused 3 | . . . . . . . 3 . Traps Extracted . | . . . . . . . . . Installed . | . . . . . . . . . Triggered 3 | . . . . . . . 3 . Machines | -11 -10 -9 -9 -8 -7 -7 -6 -6 ---------- Run | Yrd Mat Mat Min Mat Fac DSF Fac Ext Machines Disabled 2 | . 1 . . 1 . . . . Max in Single Turn 1 | . 1 . . 1 . . . . Garrison Access 1 | . . . . 1 . . . . Machines Repaired . | . . . . . . . . . Machines Dismantled . | . . . . . . . . . Machines Sabotaged . | . . . . . . . . . Overloaded Fab Kills . | . . . . . . . . . Hacking | -11 -10 -9 -9 -8 -7 -7 -6 -6 --------- Run | Yrd Mat Mat Min Mat Fac DSF Fac Ext Machines Accessed 28 | . 5 1 4 . 1 . 17 . Terminals 16 | . 4 1 2 . 1 . 8 . Fabricators 2 | . . . . . . . 2 . Repair Stations 1 | . . . . . . . 1 . Recycling Units 4 | . 1 . . . . . 3 . Scanalyzers 3 | . . . . . . . 3 . Garrison Access . | . . . . . . . . . Total Hacks 96 | . 17 4 7 . 1 . 67 . Successful 42 | . 6 1 4 . 1 . 30 . Failed 54 | . 11 3 3 . . . 37 . Catastrophic 8 | . 1 . . . . . 7 . Database Lockouts . | . . . . . . . . . Manual 20 | . 9 . 4 . . . 7 . Terminals 57 | . 14 4 5 . 1 . 33 . Fabricators 5 | . . . . . . . 5 . Repair Stations 2 | . . . . . . . 2 . Recycling Units 13 | . 3 . . . . . 10 . Scanalyzers 17 | . . . . . . . 17 . Garrison Access . | . . . . . . . . . Terminal Hacks 20 | . 4 1 4 . 1 . 10 . Robot Analysis 1 | . 1 . . . . . . . Prototype ID Bank 4 | . 1 . 1 . . . 2 . Open Door 2 | . . . 2 . . . . . Open DSF 1 | . . . . . 1 . . . Branch Access Points 1 | . . . . . . . 1 . Unreport Threat 1 | . . 1 . . . . . . Locate Traps 6 | . 2 . . . . . 4 . Registered Components 1 | . . . . . . . 1 . Zone Layout 3 | . . . 1 . . . 2 . Fabricator Hacks 3 | . . . . . . . 3 . Network Status 1 | . . . . . . . 1 . Load Schematic 1 | . . . . . . . 1 . Build 1 | . . . . . . . 1 . Repair Station Hacks . | . . . . . . . . . Recycling Unit Hacks 3 | . 1 . . . . . 2 . Report Inventory 1 | . . . . . . . 1 . Retrieve Components 2 | . 1 . . . . . 1 . Scanalyzer 15 | . . . . . . . 15 . Insert Component 7 | . . . . . . . 7 . Analyze 8 | . . . . . . . 8 . Garrison Access Hacks . | . . . . . . . . . Unauthorized Hacks 1 | . 1 . . . . . . . Terminals 1 | . 1 . . . . . . . Assimilate 1 | . 1 . . . . . . . Fabricators . | . . . . . . . . . Repair Stations . | . . . . . . . . . Recycling Units . | . . . . . . . . . Scanalyzers . | . . . . . . . . . Garrison Access . | . . . . . . . . . Data Cores Recovered . | . . . . . . . . . Used . | . . . . . . . . . Hacking Detections 26 | . 5 1 2 . 1 . 17 . Full Trace Events 16 | . 3 1 1 . . . 11 . Feedback Events . | . . . . . . . . . Feedback Blocked . | . . . . . . . . . Robot Schematics Acquired . | . . . . . . . . . Robots Built . | . . . . . . . . . Authchips . | . . . . . . . . . Time . | . . . . . . . . . Total Robot Build Rating . | . . . . . . . . . Part Schematics Acquired 7 | . . . . . . . 7 . Parts Built 2 | . . . . . . . 2 . Authchips . | . . . . . . . . . Time 73 | . . . . . . . 73 . Total Part Build Rating 6 | . . . . . . . 6 . Parts Repaired . | . . . . . . . . . Time . | . . . . . . . . . Parts Recycled . | . . . . . . . . . Recycled Matter . | . . . . . . . . . Retrieved Matter . | . . . . . . . . . Retrieved Components 12 | . 10 . . . . . 2 . Parts Scanalyzed 7 | . . . . . . . 7 . Part Schematics Acquired 7 | . . . . . . . 7 . Parts Damaged . | . . . . . . . . . Bothacking | -11 -10 -9 -9 -8 -7 -7 -6 -6 ------------ Run | Yrd Mat Mat Min Mat Fac DSF Fac Ext Used RIF Installer . | . . . . . . . . . Robots Hacked 3 | . . . . . . . 3 . Non-combat 3 | . . . . . . . 3 . Combat . | . . . . . . . . . Robot Hacks Applied 4 | . . . . . . . 4 . parse_system 1 | . . . . . . . 1 . no_distress 1 | . . . . . . . 1 . find_chute 1 | . . . . . . . 1 . find_recycling 1 | . . . . . . . 1 . Relay Couplers Released 3 | . . . . 3 . . . . Machine Destruction 3 | . . . . 3 . . . . Fabnet Peak Effective % . | . . . . . . . . . Robots Rewired . | . . . . . . . . . Allies Hacked . | . . . . . . . . . Hacks Repelled . | . . . . . . . . . Allies | -11 -10 -9 -9 -8 -7 -7 -6 -6 -------- Run | Yrd Mat Mat Min Mat Fac DSF Fac Ext Total Allies 4 | . . . 1 . . . 3 . Largest Group 3 | . . . 1 . . . 3 . Highest-Rated Group 93 | . . . 31 . . . 93 . Highest-Rated Ally 31 | . . . 31 . . . 31 . Total Orders . | . . . . . . . . . Ally Attacks 7 | . . . . . . . 7 . Total Damage 62 | . . . . . . . 62 . Kills 1 | . . . . . . . 1 . Allies Corrupted . | . . . . . . . . . Allies Melted . | . . . . . . . . . Intel | -11 -10 -9 -9 -8 -7 -7 -6 -6 ------- Run | Yrd Mat Mat Min Mat Fac DSF Fac Ext Robot Analysis Total 1 | . 1 . . . . . . . Derelict Logs Recovered 1 | . . . 1 . . . . . Drone Launches . | . . . . . . . . . Drone Recoveries . | . . . . . . . . . Exploration | -11 -10 -9 -9 -8 -7 -7 -6 -6 ------------- Run | Yrd Mat Mat Min Mat Fac DSF Fac Ext Turns Passed 3240 | 99 337 283 900 259 59 92 1148 63 Spaces Moved 3623 | 58 312 395 684 134 152 144 1650 94 Core 18 | 3 . . . 9 . 5 1 . Treads . | . . . . . . . . . Legs 757 | . . . 644 113 . . . . Wheels 189 | 55 134 . . . . . . . Hover 1335 | . . . . . . 11 1230 94 Flight 1324 | . 178 395 40 12 152 128 419 . Fastest Speed 34 | 50 37 37 40 34 34 34 34 56 Average Speed 65 | 87 55 37 115 117 34 40 53 56 Slowest Speed 250 | 100 80 40 120 250 34 150 250 56 Overloaded Moves . | . . . . . . . . . Propulsion Burnouts . | . . . . . . . . . Robots Hopped . | . . . . . . . . . Cave-ins Triggered . | . . . . . . . . . Exploration Rate (%) 41 | 4 59 36 96 16 6 89 43 24 Regions Visited 8 Branch Regions 2 Pre-discovered Areas . | . . . . . . . . . Known Exits Taken 5 | . 1 1 1 . 1 . 1 . Unknown Exits Taken 2 | 1 . . . 1 . . . . Scrap Searched 2 | . . . 2 . . . . . Spaces Dug 23 | . 7 . . . . . 16 . Terrain Destroyed 116 | . 25 20 34 21 . . 16 . Melee 16 | . . . . . . . 16 . Projectile . | . . . . . . . . . AOE 100 | . 25 20 34 21 . . . . Terrain Rammed . | . . . . . . . . . Walls Destroyed . | . . . . . . . . . Machines Disabled . | . . . . . . . . . Actions | -11 -10 -9 -9 -8 -7 -7 -6 -6 --------- Run | Yrd Mat Mat Min Mat Fac DSF Fac Ext Total 4154 | 84 399 460 776 194 159 172 1811 99 Wait 89 | . 4 2 56 12 . . 15 . Move 3615 | 57 311 394 683 133 151 143 1649 94 Hop . | . . . . . . . . . Pick Up 34 | 5 6 4 3 3 1 2 10 . Fast Attach 69 | 8 6 4 11 8 2 6 24 . Attach 27 | . 5 9 1 1 1 . 10 . Detach 12 | . . 1 4 . . . 7 . Swap 5 | 2 . . 1 . . . 2 . Drop 44 | 2 7 1 5 5 4 4 15 1 Fire 141 | 10 60 44 3 18 . . 6 . Melee 89 | . . . 9 4 . 2 70 4 Ram 1 | . . 1 . . . . . . Kick 10 | . . . . 10 . . . . Crush . | . . . . . . . . . Escape Stasis 15 | . . . . . . 15 . . Rewire . | . . . . . . . . . Trap 3 | . . . . . . . 3 . Miscellaneous . | . . . . . . . . . Route ------- -11/Scrapyard -10/Materials (discovered 2 exits: *Mat / [*Min]) -9/Materials -9/Mines (discovered 2 exits: *Mat x2) -8/Materials -7/Factory -7/DSF -6/Factory (discovered 5 exits: [*Fac] / *Low x2 / *Ext x2) -6/Extension History --------- Turn | Location | Event 5 | -11/Scrapyard | Discovered new exit (range 15) 100 | -11/Scrapyard | Entered Materials 242 | -10/Materials | Discovered new exit (range 9) 301 | -10/Materials | Lost 3 parts (1p1n1w) 312 | -10/Materials | Destroyed 7 combat bots 365 | -10/Materials | Discovered new exit (range 16) 437 | -10/Materials | Identified exit to Materials 437 | -10/Materials | Entered another Materials area 437 | -9/Materials | Evolved 2 slots: Utility x2 631 | -9/Materials | Core integrity fell below 50% 659 | -9/Materials | Lost 11 parts (2p5n1u3w) 714 | -9/Materials | Discovered new exit (range 8) 717 | -9/Materials | Identified exit to Mines 720 | -9/Materials | Entered Mines 740 | -9/Mines | Met a Derelict who couldn't figure out how to use a Trap Extractor 873 | -9/Mines | Learned location of 1 exit from Proximity Caves 875 | -9/Mines | Build established: Mutant 879 | -9/Mines | Discovered new exit (range 8) 908 | -9/Mines | Discovered new exit (range 8) 915 | -9/Mines | Identified exit to Materials 961 | -9/Mines | Found a damaged Exp. Sensor Array with a note attached 963 | -9/Mines | Found Prototype Device 1074 | -9/Mines | Received a Mining Laser from a helpful Derelict 1200 | -9/Mines | Found the Drone Emporium 1216 | -9/Mines | Found Prototype Device 1378 | -9/Mines | Received a Rocket Launcher from a helpful Derelict 1620 | -9/Mines | Entered Materials 1620 | -8/Materials | Evolved 2 slots: Power x1, Propulsion x1 1786 | -8/Materials | Discovered new exit (range 15) 1861 | -8/Materials | Lost 6 parts (1p2n2u1w) 1879 | -8/Materials | Entered Factory 1879 | -7/Factory | Evolved 2 slots: Utility x2 1905 | -7/Factory | Lost 3 parts (1p2u) 1938 | -7/Factory | Identified exit to DSF 1938 | -7/Factory | Entered DSF 1958 | -7/DSF | Additional patrols routed to DSF 2008 | -7/DSF | Discovered new exit (range 16) 2030 | -7/DSF | Entered Factory 2030 | -6/Factory | Evolved 2 slots: Propulsion x1, Utility x1 2087 | -6/Factory | Discovered new exit (range 7) 2183 | -6/Factory | Garrison activated, responded to threat 2308 | -6/Factory | Identified exit to Lower Caves 2308 | -6/Factory | Identified exit to Extension 2380 | -6/Factory | Search patrols dispatched 2431 | -6/Factory | Lost 4 parts (3u1w) 2503 | -6/Factory | Found Prototype Processor 2505 | -6/Factory | Found Prototype Processor 2510 | -6/Factory | Found Prototype Processor 2615 | -6/Factory | Fabricated Cesium-ion Thruster? 2698 | -6/Factory | Identified Exp. Targeting Computer (x3) 2730 | -6/Factory | Search patrols dispatched 2788 | -6/Factory | Core integrity fell below 50% 2948 | -6/Factory | Allied Derelicts emerged from ambush trap array 3017 | -6/Factory | Lost 3 allies 3075 | -6/Factory | Build established: Hacker-Mutant 3080 | -6/Factory | Search patrols dispatched 3178 | -6/Factory | Entered Extension 3221 | -6/Extension | Spotted B-75 Beast 3229 | -6/Extension | Spotted B-75 Beast 3231 | -6/Extension | Core integrity fell below 20% 3241 | -6/Extension | Destroyed by B-75 Beast with Magnetic Acceleration Cannon Last Messages --------------- Dropped Gravmag System. Acquired Gravmag System. Acquired Adv. Weight Redist. System. OOBPPOSAI6SZAR|PPE9UXA2 Acquired Adv. Sensor Array. Connecting with Door Terminal... LOCATION=EXTENSION GOAL=ESCAPE Dropped Gravmag System. Imp. Trap Scanner destroyed. Sneak attack on A-15 Conveyor. Imp. Melee Analysis Suite destroyed. Machine disabled. U-05 Engineer destroyed. Remote Datajack destroyed. Adv. System Shield destroyed. Critical hit (Meltdown: +310). Mic. Nuclear Core destroyed. Lgt. Angular Momentum Engine destroyed. Destroyed Imp. Hover Unit. Map ----- +----------------------------------------------------+ | ?????????????????????????????????????????????????? | | ?????????????????????????????????????????????????? | | ?????????????????????????????????????????????????? | | ?????????????????????????????????????????????????? | | ?????????????????????????????????????????????????? | | ?????????????????????????????????????????????????? | | ?????????????????????????????????????????????????? | | ?????????????????????????????????????????????????? | | ?????????????????????????????????????????????????? | | ?????????????????????????????????????????????????? | | ???????????????????????? ???????????????????????? | | ???????????????????????? ???????????????????????? | | ???????????????????????? ???????????????????????? | | ???????????????????????? ???????????????????????? | | ???????????????????????? ???????????????????????? | | ???????????????????????? ???????????????????????? | | ???????????????????????? ???????????????????????? | | ???????????????????????? #??????????????????????? | | ???????????????????????? #??????????????????????? | | ???????????????????????? #??????????????????????? | | ???????????????????????? #??????????????????????? | | ????????????????????????# #??????????????????????? | | ????????????????????????# #??????????????????????? | | ????????????????????????# #??????????????????????? | | ????????????????????????#w#??##??#???????????????? | | ??????????????????????###@### ## ### ????????????? | | ??????????????????????#""Y " ""Y""??????????? | | ??????????????????????# "! " " ??????????? | | ??????????????????????# |%Y #?????????? | | ??????????????????????# #?????????? | | ####################### #?????????? | | ????????? | | % % ????????? | | BB ?????????? | | BB BB ?????????? | | ukk BB ?????????? | | ######################; A ??????????? | | ?????????????????????## ??????????? | | ??????????????????????# ???????????? | | ??????????????????????# ???????????? | | ??????????????????????# ????????????? | | ??????????????????????######T#"""##??????????????? | | ????????????????????????????##???????????????????? | | ?????????????????????????????????????????????????? | | | | | | | | | | | | | +----------------------------------------------------+ Best States ------------- Heat Dissipation 37 Energy Generation 45 Energy Capacity 315 Matter Stores 300 Matter Capacity 300 Sight Range 18 Robot Scan Range 16 Terrain Scan Range 16 Terrain Scan Density 10 ECM Strength 1 Additional Mass Support 9 Armor Coverage 225 Propulsion Shielding 33 Evasion (%) 73 Targeting Accuracy 12 Melee Accuracy 20 Offensive Hacking 10 Defensive Hacking 14 Item Schematics ----------------- Cesium-ion Thruster | -6/Factory | Scanalyzed Hvy. Flail | -6/Factory | Scanalyzed Triangulator | -6/Factory | Scanalyzed Mic. Nuclear Core | -6/Factory | Scanalyzed Power Sword | -6/Factory | Scanalyzed Imp. Trap Extractor | -6/Factory | Scanalyzed Remote Datajack | -6/Factory | Scanalyzed Robot Schematics ------------------ None Fabricated ------------ Cesium-ion Thruster | x2 | -6/Factory Alien Tech Used ----------------- None Achievements -------------- Hehehe Challenges ------------ None Game ------ Seed CombatBackupShredder Manual? 0 Play Time 02:00:16 Cumulative 19.5 hours Start 2024.04.21 @ 22:18:57 End 2024.04.22 @ 00:25:47 Sessions 1 Manual Loads 0 Difficulty Rogue Special Mode None Game No. 12 Rogue 12 Adventurer 0 Explorer 0 Win Type - Total 0 Types 0/0/0/0/0/0/0/0/0 Lore% 13 Gallery% 21 Achievement% 19 Wizard Run 0 Options --------- Layout 1 ASCII 0 Keyboard 0 Movement Mouse Keybinds 0 Fullscreen 2 Font 32/SmallcapsGlow Map View 50x35 Zoom Use 0% Tactical HUD 0 Map Filters NONE Filters NONE Steam 1 RUN: d4fe84e0-206e-48d6-93ee-1662d00b9d03